bitfinex/quotes_SOLUSD_20250219
["timestamp","ask_amount","ask_price","bid_price","bid_amount"]
[1739980563825,27.85419122,169.73,169.67,33.74789122]
[1739980564122,4.98,169.74,169.67,33.74789122]
[1739980564123,32.83419122,169.74,169.67,33.74789122]
[1739980564291,27.85419122,169.71,169.65,1.5389]
[1739980564493,27.85419122,169.7,169.65,1.5389]
[1739980565116,27.85419122,169.69,169.63,27.85419122]
[1739980566020,27.85419122,169.69,169.62,27.85419122]
[1739980566184,27.85419122,169.67,169.61,7.4347]
[1739980566386,4.98,169.68,169.62,27.85419122]
[1739980566586,4.98,169.68,169.66,27.85419122]
[1739980566781,115.53419122,169.73,169.66,27.85419122]
[1739980567181,27.85419122,169.71,169.64,27.85419122]
[1739980567387,27.85419122,169.69,169.62,108.75419122]
[1739980568113,27.85419122,169.69,169.63,5.8951]
[1739980568724,27.85419122,169.71,169.64,27.85419122]
[1739980568912,88.591,169.75,169.64,80.9]
[1739980569119,27.85419122,169.74,169.68,27.85419122]
[1739980569419,32.83419122,169.75,169.68,108.75419122]
[1739980569724,4.98,169.75,169.7,27.85419122]
[1739980570330,4.98,169.75,169.71,27.85419122]
[1739980570492,4.98,169.75,169.7,33.74679122]
[1739980570925,27.85419122,169.76,169.7,33.74679122]
[1739980571231,27.85419122,169.75,169.69,5.893]
[1739980571724,27.85419122,169.76,169.69,27.85419122]
[1739980571919,27.85419122,169.76,169.7,27.85419122]
[1739980572417,27.85419122,169.76,169.69,33.74719122]
[1739980572418,27.85419122,169.75,169.69,33.74719122]
[1739980572730,27.85419122,169.75,169.69,27.85419122]
[1739980574022,27.85419122,169.74,169.68,86.7933]
[1739980574226,5.8907,169.76,169.68,80.9]
[1739980574227,27.85419122,169.72,169.68,80.9]
[1739980574712,27.85419122,169.72,169.68,86.7934]
[1739980575098,27.85419122,169.73,169.68,86.7934]
[1739980576392,27.85419122,169.7,169.68,80.9]
[1739980576618,27.85419122,169.7,169.67,93.5]
[1739980577531,27.85419122,169.71,169.67,99.3937]
[1739980578637,27.85419122,169.71,169.67,93.5]
[1739980579337,27.85419122,169.72,169.67,93.5]
[1739980581041,27.85419122,169.72,169.67,93.53]
[1739980581446,27.85419122,169.72,169.67,93.5]
[1739980582336,5.8911,169.75,169.67,127.24769122]
[1739980582549,5.8911,169.75,169.67,208.14769122]
[1739980582725,32.81419122,169.74,169.67,208.14769122]
[1739980583230,27.85419122,169.74,169.68,27.85419122]
[1739980583616,27.85419122,169.73,169.67,180.2935]
[1739980584126,27.85419122,169.71,169.67,174.4]
[1739980584331,27.85419122,169.7,169.67,93.5]
[1739980585013,27.85419122,169.68,169.67,93.5]
[1739980586049,33.74759122,169.68,169.67,93.5]
[1739980589041,33.74759122,169.68,169.65,80.9]
[1739980589252,27.85419122,169.66,169.6,92.865]
[1739980590250,27.85419122,169.67,169.6,120.71919122]
[1739980590642,27.85419122,169.67,169.61,27.85419122]
[1739980591043,27.85419122,169.65,169.61,80.9]
[1739980591251,27.85419122,169.63,169.61,80.9]
[1739980591852,27.85419122,169.64,169.61,80.9]
[1739980592669,17.41155906,169.64,169.61,80.9]
[1739980593459,17.41155906,169.64,169.61,80.93]
[1739980593864,5.8939,169.67,169.61,80.93]
[1739980594045,17.41155906,169.65,169.61,86.8257]
[1739980594666,17.41155906,169.62,169.61,0.03]
[1739980596438,23.30705906,169.62,169.61,0.03]
[1739980596766,24.90535906,169.62,169.61,0.03]
[1739980598266,23.30705906,169.62,169.61,0.03]
[1739980598574,24.4126159,169.62,169.61,0.03]
[1739980598785,34.88141445,169.62,169.61,0.03]
[1739980599260,77.50057206,169.62,169.49,95.1529]
[1739980599447,27.88035761,169.54,169.49,176.0529]
[1739980599945,27.88035761,169.55,169.49,176.0529]
[1739980600256,4.96,169.56,169.49,176.0529]
[1739980600257,4.96,169.56,169.5,27.88035761]
[1739980600663,32.84035761,169.56,169.49,93.52]
[1739980600865,27.88035761,169.55,169.49,93.52]
[1739980601174,32.84035761,169.56,169.5,27.88035761]
[1739980601968,4.96,169.56,169.5,27.88035761]
[1739980602358,27.88035761,169.52,169.43,2.39953215]
[1739980602563,27.88035761,169.52,169.46,27.88035761]
[1739980602871,63.20626118,169.57,169.49,27.88035761]
[1739980603073,8.0853,169.58,169.52,27.88035761]
[1739980603074,4.96,169.56,169.52,27.88035761]
[1739980603240,27.88035761,169.6,169.54,27.88035761]
[1739980603750,27.88035761,169.6,169.53,121.42035761]
[1739980604170,10.8559,169.61,169.53,93.54]
[1739980604386,27.88035761,169.59,169.53,93.54]
[1739980604943,27.88035761,169.58,169.53,93.54]
[1739980605664,27.88035761,169.58,169.53,93.57]
[1739980605866,27.88035761,169.59,169.53,99.4686]
[1739980606249,27.88035761,169.59,169.53,127.34895761]
[1739980606458,11.96176513,169.61,169.55,27.88035761]
[1739980606459,4.96,169.61,169.55,27.88035761]
[1739980606965,32.84035761,169.61,169.54,27.88035761]
[1739980607766,32.84035761,169.61,169.54,108.78035761]
[1739980607963,4.96,169.61,169.56,27.88035761]
[1739980608244,32.84035761,169.63,169.57,27.88035761]
[1739980608563,32.84035761,169.63,169.57,33.77755761]
[1739980608869,32.84035761,169.63,169.56,27.88035761]
[1739980609168,32.84035761,169.63,169.57,27.88035761]
[1739980609375,4.96,169.63,169.57,27.88035761]
[1739980609753,4.96,169.63,169.53,99.4686]
[1739980609754,27.88035761,169.59,169.53,99.4686]
[1739980610163,27.88035761,169.59,169.53,97.4686]
[1739980611063,27.88035761,169.61,169.54,27.88035761]
[1739980611313,82.7,169.62,169.56,27.88035761]
[1739980611645,110.58035761,169.62,169.55,27.88035761]
[1739980611976,27.88035761,169.61,169.54,27.88035761]
[1739980612546,27.88035761,169.6,169.54,5.8981]
[1739980617394,27.88035761,169.6,169.54,5.9281]
[1739980618511,27.88035761,169.59,169.54,5.9281]
[1739980618818,17.42318872,169.59,169.54,5.9281]
[1739980620868,17.42318872,169.6,169.54,5.9281]
[1739980621763,101.22876918,169.62,169.55,17.42318872]
[1739980621987,17.42318872,169.62,169.56,17.42318872]
[1739980623092,17.42318872,169.63,169.56,23.32058872]
[1739980623298,4.96,169.63,169.57,17.42318872]
[1739980623681,100.12318872,169.65,169.58,17.42318872]
[1739980623900,28.42618872,169.67,169.6,17.42318872]
[1739980624200,17.42318872,169.66,169.59,110.98318872]
[1739980624390,17.42318872,169.64,169.59,93.56]
[1739980624786,17.42318872,169.63,169.59,93.56]
[1739980624971,17.42318872,169.62,169.59,93.56]
[1739980625180,6.99981332,169.65,169.59,93.56]
[1739980625181,17.42318872,169.61,169.59,93.56]
[1739980625496,1.10531332,169.65,169.59,93.56]
[1739980625497,17.42318872,169.62,169.59,93.56]
[1739980625879,17.42318872,169.62,169.58,5.8968]
[1739980626080,1.10553687,169.64,169.57,93.56]
[1739980626081,17.42318872,169.59,169.57,93.56]
[1739980626273,100.12318872,169.58,169.57,93.56]
[1739980626478,101.22899494,169.58,169.57,93.56]
[1739980626993,24.42589494,169.58,169.57,81.74826031]
[1739980627193,24.42589494,169.58,169.54,0.03]
[1739980627194,44.0755438,169.58,169.54,0.03]
[1739980627395,17.42318872,169.55,169.45,80.9]
[1739980627597,17.42318872,169.49,169.44,99.46]
[1739980627781,17.42318872,169.48,169.44,99.46]
[1739980627984,22.38318872,169.48,169.44,93.56]
[1739980628176,17.42318872,169.47,169.44,93.56]
[1739980628373,17.42318872,169.46,169.44,93.56]
[1739980628577,27.91870986,169.46,169.44,93.56]
[1739980628773,27.91870986,169.45,169.44,93.56]
[1739980630796,33.82010986,169.45,169.44,93.59]
[1739980631688,32.87870986,169.45,169.44,93.59]
[1739980632289,38.78010986,169.45,169.44,93.59]
[1739980632692,100.88010986,169.45,169.44,93.59]
[1739980633018,41.48045732,169.45,169.44,0.03]
[1739980633194,1.0,169.44,169.34,93.6]
[1739980633401,27.91870986,169.38,169.34,93.6]
[1739980633701,32.87870986,169.38,169.34,93.6]
[1739980634222,4.96,169.38,169.34,127.42390986]
[1739980634397,4.96,169.38,169.34,93.6]
[1739980634711,27.91870986,169.36,169.34,93.6]
[1739980635410,27.91870986,169.35,169.34,93.6]
[1739980636312,27.91870986,169.35,169.29,0.3]
[1739980636489,27.91870986,169.3,169.29,0.3]
[1739980636998,32.87870986,169.31,169.29,0.3]
[1739980637419,4.96,169.31,169.29,0.3]
[1739980637899,32.89870986,169.37,169.3,27.91870986]
[1739980638102,4.98,169.37,169.31,27.91870986]
[1739980638305,4.98,169.37,169.32,27.91870986]
[1739980638820,32.89870986,169.37,169.3,27.91870986]
[1739980639005,27.91870986,169.35,169.29,0.3]
[1739980639211,27.91870986,169.34,169.29,0.3]
[1739980639901,27.91870986,169.33,169.29,0.3]
[1739980640617,27.91870986,169.34,169.29,0.3]
[1739980640991,27.91870986,169.35,169.29,0.3]
[1739980641201,110.61870986,169.36,169.29,34.12550986]
[1739980641416,82.7,169.39,169.34,27.91870986]
[1739980641591,82.7,169.41,169.36,27.91870986]
[1739980641792,4.98,169.42,169.36,27.91870986]
[1739980642031,82.7,169.43,169.38,27.91870986]
[1739980642193,87.68,169.45,169.39,27.91870986]
[1739980642395,115.59870986,169.45,169.38,27.91870986]
[1739980642801,115.59870986,169.45,169.39,27.91870986]
[1739980643621,0.063,169.44,169.41,27.91870986]
[1739980643839,0.063,169.44,169.43,27.91870986]
[1739980644726,0.063,169.44,169.43,108.81870986]
[1739980645099,110.61870986,169.56,169.44,20.6561]
[1739980645300,87.68,169.56,169.5,27.91870986]
[1739980646128,82.7,169.59,169.52,27.91870986]
[1739980646317,82.7,169.59,169.54,27.91870986]
[1739980646509,4.98,169.6,169.54,27.91870986]
[1739980647212,4.98,169.6,169.54,33.81670986]
[1739980647409,4.98,169.6,169.55,27.91870986]
[1739980647599,4.98,169.6,169.54,33.81670986]
[1739980647806,32.89870986,169.6,169.54,5.898]
[1739980648857,32.89870986,169.6,169.54,33.81670986]
[1739980649934,32.89870986,169.6,169.54,5.898]
[1739980650511,32.89870986,169.6,169.53,27.91870986]
[1739980650512,27.91870986,169.57,169.51,27.91870986]
[1739980650706,27.91870986,169.59,169.52,27.91870986]
[1739980651201,27.91870986,169.59,169.5,5.8997]
[1739980651202,27.91870986,169.59,169.53,27.91870986]
[1739980651531,27.91870986,169.59,169.53,33.81710986]
[1739980652725,27.91870986,169.59,169.49,93.66]
[1739980652726,27.91870986,169.54,169.49,93.66]
[1739980652934,27.91870986,169.53,169.49,93.66]
[1739980653107,82.7,169.57,169.49,93.66]
[1739980653108,27.91870986,169.5,169.49,93.66]
[1739980653432,27.91870986,169.51,169.49,93.66]
[1739980653736,82.7,169.52,169.49,93.66]
[1739980653945,82.7,169.52,169.49,127.47860986]
[1739980654114,82.7,169.52,169.49,99.5599]
[1739980654306,4.96,169.54,169.49,99.5599]
[1739980654633,4.96,169.54,169.49,127.47860986]
[1739980655019,4.96,169.54,169.49,93.66]
[1739980655229,32.87870986,169.54,169.49,93.66]
[1739980655711,27.91870986,169.53,169.49,93.66]
[1739980656220,6.0661173,169.54,169.49,127.47870986]
[1739980656221,4.96,169.54,169.49,127.47870986]
[1739980656606,32.87870986,169.54,169.49,93.66]
[1739980656813,27.91870986,169.53,169.49,93.66]
[1739980657032,27.91870986,169.5,169.49,93.66]
[1739980657729,82.7,169.52,169.49,93.66]
[1739980657903,4.96,169.54,169.49,93.66]
[1739980658109,4.96,169.54,169.49,127.47860986]
[1739980658308,4.96,169.54,169.5,27.91870986]
[1739980658532,172.71870986,169.56,169.5,27.91870986]
[1739980658699,0.063,169.57,169.52,27.91870986]
[1739980658908,0.063,169.57,169.54,27.91870986]
[1739980659317,0.063,169.57,169.55,27.91870986]
[1739980659542,0.063,169.57,169.56,27.91870986]
[1739980659827,0.063,169.57,169.55,27.91870986]
[1739980660036,0.063,169.57,169.56,27.91870986]
[1739980660209,0.063,169.57,169.55,27.91870986]
[1739980660621,0.063,169.57,169.56,33.81630986]
[1739980663438,0.063,169.57,169.56,5.8976]
[1739980663733,0.063,169.57,169.56,33.81630986]
[1739980665638,0.063,169.57,169.54,33.81670986]
[1739980666534,0.063,169.57,169.54,5.898]
[1739980666935,0.063,169.57,169.54,33.81670986]
[1739980668623,0.063,169.57,169.54,5.898]
[1739980669133,0.063,169.57,169.54,33.81670986]
[1739980672241,0.063,169.57,169.54,5.898]
[1739980672850,0.063,169.57,169.54,33.81670986]
[1739980673041,0.063,169.57,169.55,27.91870986]
[1739980674249,0.063,169.57,169.54,33.81670986]
[1739980674835,0.063,169.57,169.55,27.91870986]
[1739980675124,0.063,169.57,169.56,27.91870986]
[1739980676421,0.063,169.57,169.56,33.81630986]
[1739980678035,0.063,169.57,169.54,80.9]
[1739980678248,0.063,169.57,169.55,5.8978]
[1739980678751,0.063,169.57,169.55,33.81650986]
[1739980679263,0.063,169.57,169.55,5.8978]
[1739980681153,0.063,169.57,169.56,27.91870986]
[1739980681340,0.063,169.57,169.56,108.81870986]
[1739980682749,0.063,169.57,169.56,114.71630986]
[1739980683627,0.063,169.61,169.56,159.94830986]
[1739980683944,0.063,169.61,169.6,27.91870986]
[1739980684951,0.063,169.61,169.6,33.81490986]
[1739980687258,0.063,169.61,169.6,114.71490986]
[1739980687557,0.063,169.78,169.77,1.0]
[1739980687760,2.44833725,169.88,169.78,1.0]
[1739980687959,91.59724762,169.9,169.82,27.91870986]
[1739980688368,27.91870986,169.9,169.79,0.88309562]
[1739980688569,27.91870986,169.84,169.77,93.54]
[1739980688746,4.96,169.86,169.8,27.91870986]
[1739980689051,32.87870986,169.86,169.79,27.91870986]
[1739980689749,4.96,169.86,169.81,27.91870986]
[1739980689947,4.96,169.86,169.82,27.91870986]
[1739980690132,33.97305451,169.86,169.79,27.91870986]
[1739980690329,27.91870986,169.85,169.79,27.91870986]
[1739980690537,27.98170986,169.83,169.77,133.24890986]
[1739980691055,0.063,169.83,169.77,133.24890986]
[1739980691225,0.063,169.83,169.78,27.91870986]
[1739980691425,0.063,169.83,169.8,27.91870986]
[1739980691838,0.063,169.83,169.77,105.3302]
[1739980692041,27.91870986,169.82,169.77,99.44]
[1739980692232,27.91870986,169.81,169.77,99.44]
[1739980692434,1.15734465,169.83,169.77,93.54]
[1739980692435,27.91870986,169.79,169.77,93.54]
[1739980692851,27.91870986,169.79,169.72,27.91870986]
[1739980693136,27.91870986,169.78,169.72,127.31060986]
[1739980693733,4.96,169.81,169.76,27.91870986]
[1739980694055,32.87870986,169.81,169.74,27.91870986]
[1739980694361,27.91870986,169.79,169.73,80.9]
[1739980694540,27.91870986,169.8,169.73,108.81870986]
[1739980694854,4.96,169.81,169.76,27.91870986]
[1739980695051,82.7,169.82,169.78,27.91870986]
[1739980695261,82.7,169.82,169.79,27.91870986]
[1739980695762,0.063,169.83,169.77,27.91870986]
[1739980696440,0.063,169.83,169.79,27.91870986]
[1739980697361,0.063,169.83,169.79,33.80830986]
[1739980697537,0.063,169.83,169.8,27.91870986]
[1739980697738,0.063,169.83,169.79,5.8896]
[1739980697937,27.91870986,169.82,169.77,80.9]
[1739980698162,27.91870986,169.82,169.76,27.91870986]
[1739980698473,27.91870986,169.82,169.75,27.91870986]
[1739980699245,27.91870986,169.81,169.75,5.8907]
[1739980699648,27.91870986,169.81,169.73,114.71000986]
[1739980699649,27.91870986,169.79,169.73,114.71000986]
[1739980699848,1.09434465,169.82,169.75,27.91870986]
[1739980700057,0.063,169.83,169.77,27.91870986]
[1739980700462,27.91870986,169.81,169.75,27.91870986]
[1739980700665,27.91870986,169.79,169.73,86.7913]
[1739980700867,32.87870986,169.8,169.73,114.71000986]
[1739980701166,4.96,169.8,169.74,27.91870986]
[1739980701465,4.96,169.8,169.75,5.891]
[1739980701671,4.96,169.8,169.76,27.91870986]
[1739980702163,4.96,169.8,169.77,27.91870986]
[1739980702359,4.96,169.8,169.78,27.91870986]
[1739980702550,0.063,169.83,169.79,27.91870986]
[1739980703064,0.063,169.83,169.78,27.91870986]
[1739980703453,0.063,169.83,169.77,27.91870986]
[1739980703655,0.063,169.83,169.78,27.91870986]
[1739980703969,0.063,169.83,169.77,33.80880986]
[1739980704465,27.91870986,169.82,169.76,80.9]
[1739980704843,27.98170986,169.83,169.76,114.70930986]
[1739980705352,27.98170986,169.83,169.77,27.91870986]
[1739980705864,0.063,169.83,169.79,27.91870986]
[1739980706047,0.063,169.83,169.8,27.91870986]
[1739980706360,0.063,169.83,169.81,27.91870986]
[1739980706760,0.063,169.83,169.82,27.91870986]
[1739980707636,0.063,169.83,169.82,114.70720986]
[1739980708546,0.0001,169.83,169.82,133.35685872]
[1739980709437,0.0001,169.83,169.82,117.68168332]
[1739980710045,0.0001,169.83,169.82,136.33133218]
[1739980710362,0.0001,169.83,169.82,137.33133218]
[1739980710774,0.0001,169.83,169.82,136.33133218]
[1739980710945,0.0001,169.83,169.82,117.68168332]
[1739980711154,27.91880986,169.83,169.8,93.44]
[1739980711448,0.0001,169.83,169.8,99.3292]
[1739980711653,0.0001,169.83,169.8,127.24790986]
[1739980711862,0.0001,169.83,169.81,27.91870986]
[1739980712173,0.0001,169.83,169.8,99.3292]
[1739980712374,27.91870986,169.82,169.8,93.44]
[1739980712754,0.0001,169.83,169.8,93.44]
[1739980713060,27.91880986,169.83,169.8,93.44]
[1739980713251,0.0001,169.83,169.8,99.3291]
[1739980713867,0.0001,169.83,169.8,127.24780986]
[1739980714067,0.0001,169.83,169.8,99.3291]
[1739980714666,0.0001,169.83,169.8,93.44]
[1739980714667,27.91880986,169.83,169.8,93.44]
[1739980714872,0.0001,169.83,169.8,93.44]
[1739980715064,0.0001,169.83,169.8,99.329]
[1739980715649,27.91880986,169.83,169.8,93.44]
[1739980715871,27.91880986,169.83,169.8,99.3292]
[1739980716175,0.0001,169.83,169.8,93.44]
[1739980716554,0.0001,169.83,169.8,99.3291]
[1739980717079,0.0001,169.83,169.8,99.3591]
[1739980717463,27.91880986,169.83,169.8,93.47]
[1739980717664,27.91870986,169.81,169.8,93.47]
[1739980719780,82.7,169.82,169.8,93.47]
[1739980720084,0.0001,169.83,169.8,93.47]
[1739980720382,27.91880986,169.83,169.8,93.47]
[1739980720587,0.0001,169.83,169.8,99.3591]
[1739980720768,0.0001,169.83,169.81,27.91870986]
[1739980721789,0.0001,169.83,169.8,93.47]
[1739980722170,0.0001,169.83,169.8,99.3592]
[1739980724684,27.91880986,169.83,169.8,93.47]
[1739980724989,0.0001,169.83,169.8,93.47]
[1739980725162,0.0001,169.83,169.8,99.3592]
[1739980726877,0.0001,169.83,169.82,27.91870986]
[1739980727254,0.0001,169.83,169.81,27.91870986]
[1739980727590,0.0001,169.83,169.8,142.00110986]
[1739980728084,0.0001,169.83,169.8,114.0824]
[1739980728464,0.0001,169.83,169.8,223.78419247]
[1739980728658,0.0001,169.83,169.8,222.90110986]
[1739980728874,0.0001,169.83,169.81,27.91870986]
[1739980729992,0.0001,169.83,169.8,180.2592]
[1739980730787,0.0001,169.83,169.8,174.37]
[1739980731574,0.0001,169.83,169.8,180.2592]
[1739980731776,0.0001,169.83,169.8,208.17790986]
[1739980731969,0.0001,169.83,169.8,180.2592]
[1739980733690,0.0001,169.83,169.8,208.17790986]
[1739980736360,0.0001,169.83,169.8,180.2592]
[1739980737064,0.0001,169.83,169.8,174.37]
[1739980737790,0.0001,169.83,169.8,208.17790986]
[1739980738170,0.0001,169.83,169.81,27.91870986]
[1739980738911,0.0001,169.83,169.82,5.8885]
[1739980739590,0.0001,169.83,169.82,33.80720986]
[1739980740698,0.0001,169.83,169.82,5.8885]
[1739980744502,0.0001,169.83,169.8,99.3592]
[1739980744974,17.36379974,169.83,169.8,99.3592]
[1739980745482,0.0001,169.83,169.8,99.3592]
[1739980749797,17.36379974,169.83,169.8,93.47]
[1739980749978,17.36369974,169.82,169.8,93.47]
[1739980750177,17.36369974,169.81,169.8,93.47]
[1739980750780,25.51099974,169.81,169.8,93.47]
[1739980751087,42.87469948,169.81,169.8,0.03]
[1739980751323,25.51099974,169.81,169.8,0.03]
[1739980752311,0.0001,169.83,169.8,0.03]
[1739980752514,4.9401,169.83,169.8,0.03]
[1739980752985,0.0001,169.83,169.8,17.39369974]
[1739980753180,0.0001,169.83,169.82,17.36369974]
[1739980754215,0.0001,169.83,169.82,23.25219974]
[1739980755489,0.0001,169.83,169.82,5.8885]
[1739980757695,0.0001,169.83,169.81,99.3088]
[1739980759206,0.0001,169.83,169.81,93.42]
[1739980759523,17.36379974,169.83,169.81,93.42]
[1739980760614,0.0001,169.83,169.81,93.42]
[1739980760815,0.0001,169.83,169.8,5.9191]
[1739980761328,17.36379974,169.83,169.8,5.9191]
[1739980761493,0.0001,169.83,169.8,5.9191]
[1739980761988,0.2,169.82,169.8,23.28279974]
[1739980762622,0.2,169.82,169.81,17.36369974]
[1739980763321,0.0001,169.83,169.81,24.13569717]
[1739980763525,0.0001,169.83,169.82,17.36369974]
[1739980765301,0.0001,169.83,169.82,23.25219974]
[1739980767098,0.0001,169.83,169.82,5.8885]
[1739980767629,0.0001,169.83,169.8,5.9189]
[1739980768730,0.0001,169.83,169.8,23.28259974]
[1739980768962,0.0001,169.83,169.81,17.36369974]
[1739980769415,0.0001,169.83,169.82,5.8885]
[1739980771525,0.0001,169.83,169.8,17.39369974]
[1739980771830,0.0001,169.83,169.81,5.8889]
[1739980772209,0.0001,169.83,169.8,0.03]
[1739980772603,17.36379974,169.83,169.8,0.03]
[1739980773040,0.0001,169.83,169.8,5.9191]
[1739980773612,17.36379974,169.83,169.8,5.9191]
[1739980774342,0.0001,169.83,169.8,5.9191]
[1739980777550,17.36379974,169.83,169.8,0.03]
[1739980778017,0.0001,169.83,169.8,0.03]
[1739980778960,0.0001,169.83,169.8,5.9191]
[1739980779243,0.0001,169.83,169.81,17.36369974]
[1739980779630,0.0001,169.83,169.82,17.36369974]
[1739980780749,0.0001,169.83,169.81,17.36369974]
[1739980781067,0.0001,169.83,169.81,23.25249974]
[1739980781448,0.0001,169.83,169.82,17.36369974]
[1739980781651,0.0001,169.83,169.81,23.25249974]
[1739980782358,0.0001,169.83,169.82,17.36369974]
[1739980782558,0.0001,169.83,169.8,5.9191]
[1739980782857,0.0001,169.83,169.81,17.36369974]
[1739980783065,0.0001,169.83,169.82,23.25219974]
[1739980787766,0.0001,169.83,169.82,24.13513961]
[1739980787962,87.64,169.94,169.82,125.33378847]
[1739980788169,17.36369974,169.93,169.86,17.36369974]
[1739980788350,100.06369974,169.93,169.87,5.8868]
[1739980788874,17.36369974,169.94,169.87,23.25049974]
[1739980789942,17.36369974,169.93,169.87,23.25049974]
[1739980790144,0.063,169.95,169.89,17.36369974]
[1739980790348,17.36369974,169.92,169.87,80.9]
[1739980790756,17.36369974,169.93,169.87,86.7867]
[1739980791353,22.36669974,169.95,169.88,17.36369974]
[1739980791672,22.36669974,169.95,169.89,17.36369974]
[1739980791973,22.36669974,169.95,169.87,118.86749974]
[1739980792159,17.36369974,169.94,169.87,118.86749974]
[1739980792751,17.42669974,169.95,169.88,17.36369974]
[1739980793073,0.063,169.95,169.9,17.36369974]
[1739980793250,0.063,169.95,169.93,17.36369974]
[1739980793446,0.063,169.95,169.94,17.36369974]
[1739980794169,0.063,169.96,169.94,36.0133486]
[1739980794372,0.0001,169.96,169.95,24.12997934]
[1739980795656,0.0001,169.96,169.95,105.02997934]
[1739980795860,0.063,170.0,169.96,18.64964886]
[1739980796060,0.063,170.0,169.99,17.36369974]
[1739980796261,0.063,170.0,169.98,17.36369974]
[1739980796482,0.063,170.0,169.97,5.8833]
[1739980797773,0.063,170.0,169.97,23.24699974]
[1739980797941,0.063,170.0,169.98,17.36369974]
[1739980798145,0.063,170.0,169.97,23.24699974]
[1739980798459,0.063,170.0,169.97,5.8833]
[1739980799176,0.063,170.0,169.99,17.36369974]
[1739980799478,0.063,170.0,169.97,23.24699974]
[1739980800050,0.063,170.0,169.97,5.8833]
[1739980802875,0.063,170.0,169.97,23.24699974]
[1739980803348,0.063,170.0,169.97,5.8833]
[1739980804268,0.063,170.0,169.97,23.24699974]
[1739980804857,0.063,170.0,169.96,174.24]
[1739980805174,17.42669974,170.0,169.96,93.34]
[1739980805552,100.06369974,169.99,169.96,93.34]
[1739980805748,17.36369974,169.97,169.96,93.34]
[1739980806071,37.10769325,169.97,169.96,93.34]
[1739980806266,42.99099325,169.97,169.96,93.34]
[1739980806650,18.45804439,169.97,169.96,93.34]
[1739980806856,82.7,169.98,169.96,99.2236]
[1739980807263,100.06369974,169.98,169.96,93.34]
[1739980807851,82.7,169.98,169.96,93.34]
[1739980808066,82.7,169.98,169.96,116.58729974]
[1739980808270,0.063,170.0,169.97,17.36369974]
[1739980808465,0.063,170.0,169.98,17.36369974]
[1739980808761,0.063,170.0,169.97,17.36369974]
[1739980810185,0.063,170.0,169.96,110.70369974]
[1739980810393,17.36369974,169.98,169.96,93.34]
[1739980810682,17.36369974,169.97,169.96,93.34]
[1739980810883,4.94,169.98,169.96,93.34]
[1739980811378,0.063,170.0,169.96,99.2535]
[1739980812282,0.063,170.0,169.96,116.61719974]
[1739980812671,0.063,170.0,169.97,17.36369974]
[1739980814000,0.063,170.0,169.99,17.36369974]
[1739980814183,0.063,170.0,169.99,23.24629974]
[1739980818889,0.063,170.0,169.99,116.56629974]
[1739980819264,0.063,170.03,169.99,212.17299974]
[1739980819575,0.063,170.03,170.02,17.36369974]
[1739980819576,0.0001,170.03,170.02,17.36369974]
[1739980820557,0.0001,170.03,170.02,23.24529974]
[1739980822194,0.0001,170.03,170.02,123.67694166]
[1739980822365,0.0001,170.03,170.02,122.7949486]
[1739980822564,0.0001,170.03,170.02,131.5507486]
[1739980824085,0.0001,170.03,170.02,133.89150667]
[1739980824281,0.0001,170.03,170.02,130.5507486]
[1739980824484,0.0001,170.03,170.02,105.79679974]
[1739980824871,0.0001,170.03,170.02,124.4464486]
[1739980825189,82.7,170.12,170.02,169.5588486]
[1739980825397,0.063,170.13,170.09,17.36369974]
[1739980825592,0.063,170.13,170.11,17.36369974]
[1739980825791,0.063,170.13,170.11,23.24199974]
[1739980827289,0.063,170.13,170.12,17.36369974]
[1739980827467,0.063,170.13,170.09,17.36369974]
[1739980827899,0.063,170.13,170.08,23.24319974]
[1739980829092,0.063,170.13,170.08,5.8795]